fUSD/lending_fUSD_20260525
["ID","MTS","AMOUNT","RATE_DAILY","PERIOD"]
[422962957,1779683432000,-1630.27664592,0.00010699,2]
[422962963,1779683432000,-1139.7907139,0.00010699,2]
[422962962,1779683432000,-490.48593202,0.00010699,2]
[422962944,1779683432000,-1630.27664592,0.00010699,2]
[422962959,1779683432000,-1461.83922391,0.00010699,2]
[422962961,1779683432000,-1630.27664592,0.00010699,2]
[422962958,1779683432000,-1630.27664592,0.00010699,2]
[422962964,1779683432000,-189.93573355,0.00010699,2]
[422962965,1779683432000,-1440.34091237,0.00010699,2]
[422962966,1779683432000,-671.43939312,0.00010699,2]
[422962928,1779683432000,-807.68017277,0.00010635,2]
[422962956,1779683432000,-879.54706536,0.00010699,2]
[422962946,1779683432000,-1630.27664592,0.00010699,2]
[422962960,1779683432000,-168.43742201,0.00010699,2]
[422962945,1779683432000,-1630.27664592,0.00010699,2]
[422962931,1779683432000,-500.0,0.00010699,2]
[422962949,1779683432000,-1630.27664592,0.00010699,2]
[422962932,1779683432000,-500.0,0.00010699,2]
[422962930,1779683432000,-500.0,0.00010699,2]
[422962939,1779683432000,-1409.73979667,0.00010699,2]
[422962937,1779683432000,-220.53684925,0.00010699,2]
[422962934,1779683432000,-256.74737329,0.00010699,2]
[422962933,1779683432000,-500.0,0.00010699,2]
[422962941,1779683432000,-1630.27664592,0.00010699,2]
[422962940,1779683432000,-1630.27664592,0.00010699,2]
[422962943,1779683432000,-1630.27664592,0.00010699,2]
[422962954,1779683432000,-149.27041944,0.00010699,2]
[422962942,1779683432000,-1630.27664592,0.00010699,2]
[422962952,1779683432000,-1481.00622648,0.00010699,2]
[422962935,1779683432000,-1630.27664592,0.00010699,2]
[422962991,1779683438000,-1630.27664592,0.00010699,2]
[422963011,1779683438000,-1617.73605633,0.00010699,2]
[422962990,1779683438000,-1630.27664592,0.00010699,2]
[422962993,1779683438000,-1630.27664592,0.00010699,2]
[422962996,1779683438000,-1630.27664592,0.00010699,2]
[422962995,1779683438000,-1630.27664592,0.00010699,2]
[422962998,1779683438000,-1630.27664592,0.00010699,2]
[422963000,1779683438000,-206.18986673,0.00010699,2]
[422963017,1779683438000,-1617.73605633,0.00010699,2]
[422963007,1779683438000,-1617.73605633,0.00010699,2]
[422963013,1779683438000,-1617.73605633,0.00010699,2]
[422963018,1779683438000,-1617.73605633,0.00010699,2]
[422963019,1779683438000,-1617.73605633,0.00010699,2]
[422963002,1779683438000,-1617.73605633,0.00010699,2]
[422963004,1779683438000,-1617.73605633,0.00010699,2]
[422963009,1779683438000,-1617.73605633,0.00010699,2]
[422963021,1779683438000,-1617.73605633,0.00010699,2]
[422963023,1779683438000,-1617.73605633,0.00010699,2]
[422962992,1779683438000,-1630.27664592,0.00010699,2]
[422963015,1779683438000,-1617.73605633,0.00010699,2]
[422962994,1779683438000,-1630.27664592,0.00010699,2]
[422962974,1779683438000,-1630.27664592,0.00010699,2]
[422962987,1779683438000,-1630.27664592,0.00010699,2]
[422963025,1779683438000,-1617.73605633,0.00010699,2]
[422962969,1779683438000,-300.0,8.7e-05,2]
[422962970,1779683438000,-958.8372528,0.00010699,2]
[422962972,1779683438000,-1630.27664592,0.00010699,2]
[422962971,1779683438000,-1630.27664592,0.00010699,2]
[422962976,1779683438000,-1630.27664592,0.00010699,2]
[422962973,1779683438000,-1630.27664592,0.00010699,2]
[422962975,1779683438000,-1630.27664592,0.00010699,2]
[422962980,1779683438000,-1630.27664592,0.00010699,2]
[422962977,1779683438000,-1630.27664592,0.00010699,2]
[422962978,1779683438000,-1630.27664592,0.00010699,2]
[422962979,1779683438000,-1630.27664592,0.00010699,2]
[422962981,1779683438000,-1630.27664592,0.00010699,2]
[422962982,1779683438000,-1630.27664592,0.00010699,2]
[422962984,1779683438000,-1630.27664592,0.00010699,2]
[422962983,1779683438000,-1630.27664592,0.00010699,2]
[422962986,1779683438000,-1630.27664592,0.00010699,2]
[422962985,1779683438000,-1630.27664592,0.00010699,2]
[422962988,1779683438000,-1630.27664592,0.00010699,2]
[422962989,1779683438000,-1630.27664592,0.00010699,2]
[422963027,1779683438000,-1617.73605633,0.00010699,2]
[422963069,1779683438000,-482.5,0.00010775,2]
[422963039,1779683438000,-1617.73605633,0.00010699,2]
[422963073,1779683438000,-6200.0,0.000109,3]
[422963081,1779683438000,-1384.29,0.0001103,2]
[422963078,1779683438000,-620.85690103,0.00010973,2]
[422963075,1779683438000,-2351.0,0.00010952,2]
[422963074,1779683438000,-5086.49235154,0.000109,2]
[422963076,1779683438000,-587.0,0.00010952,2]
[422963077,1779683438000,-150.0,0.00010959,2]
[422963079,1779683438000,-255.0,0.00010999,2]
[422963082,1779683438000,-5117.59549086,0.00011099,2]
[422963083,1779683438000,-5117.5954908,0.00011099,2]
[422963084,1779683438000,-17335.1519941,0.00011099,2]
[422963086,1779683438000,-17335.15199404,0.00011099,2]
[422963085,1779683438000,-17335.15199404,0.00011099,2]
[422963087,1779683438000,-5086.49235151,0.00011279,2]
[422963090,1779683438000,-408.53,0.00011353,2]
[422963091,1779683438000,-17335.15199404,0.00011367,2]
[422963092,1779683438000,-200.0,0.00011415,2]
[422963089,1779683438000,-807.68017275,0.00011346,2]
[422963029,1779683438000,-1617.73605633,0.00010699,2]
[422963072,1779683438000,-3100.0,0.000108,3]
[422963088,1779683438000,-5117.5954908,0.00011293,2]
[422963080,1779683438000,-408.53,0.00011019,2]
[422963071,1779683438000,-1597.15,0.00010785,2]
[422963070,1779683438000,-1384.29,0.00010779,2]
[422963037,1779683438000,-1617.73605633,0.00010699,2]
[422963035,1779683438000,-1617.73605633,0.00010699,2]
[422963031,1779683438000,-1617.73605633,0.00010699,2]
[422963041,1779683438000,-1617.73605633,0.00010699,2]
[422963033,1779683438000,-1617.73605633,0.00010699,2]
[422963046,1779683438000,-1617.73605633,0.00010699,2]
[422963050,1779683438000,-1617.73605633,0.00010699,2]
[422963048,1779683438000,-1617.73605633,0.00010699,2]
[422963052,1779683438000,-1617.73605633,0.00010699,2]
[422963043,1779683438000,-1617.73605633,0.00010699,2]
[422963060,1779683438000,-1617.73605633,0.00010699,2]
[422963062,1779683438000,-1617.73605633,0.00010699,2]
[422963054,1779683438000,-1617.73605633,0.00010699,2]
[422963064,1779683438000,-500.0,0.00010699,2]
[422963068,1779683438000,-968127.69902749,0.000107,2]
[422963066,1779683438000,-399.40471236,0.00010699,2]
[422963058,1779683438000,-1617.73605633,0.00010699,2]
[422963067,1779683438000,-500.0,0.00010699,2]
[422963056,1779683438000,-1617.73605633,0.00010699,2]
[422963124,1779683439000,-150.0,0.00012822,2]
[422963125,1779683439000,-150.0,0.00012822,2]
[422963127,1779683439000,-150.0,0.00012822,2]
[422963121,1779683439000,-150.0,0.00012822,2]
[422963117,1779683439000,-243.41,0.00012766,2]
[422963119,1779683439000,-9400.0,0.000128,4]
[422963118,1779683439000,-807.68017275,0.00012768,2]
[422963126,1779683439000,-150.0,0.00012822,2]
[422963123,1779683439000,-150.0,0.00012822,2]
[422963120,1779683439000,-150.0,0.00012822,2]
[422963138,1779683439000,-5117.5954908,0.0001294,2]
[422963129,1779683439000,-150.0,0.00012822,2]
[422963130,1779683439000,-150.0,0.00012822,2]
[422963131,1779683439000,-17335.15199404,0.00012854,2]
[422963132,1779683439000,-999.99,0.00012893,2]
[422963133,1779683439000,-1216.62,0.00012893,2]
[422963136,1779683439000,-299.99,0.00012893,2]
[422963135,1779683439000,-9999.99,0.00012893,2]
[422963134,1779683439000,-150.99,0.00012893,2]
[422963114,1779683439000,-5117.5954908,0.0001261,2]
[422963128,1779683439000,-202.87972699,0.00012822,2]
[422963115,1779683439000,-408.53,0.00012689,2]
[422963095,1779683439000,-17335.15199404,0.00011739,2]
[422963113,1779683439000,-5086.49235151,0.00012486,2]
[422963137,1779683439000,-12500.0,0.000129,4]
[422963093,1779683439000,-5117.5954908,0.00011623,2]
[422963094,1779683439000,-408.53,0.00011687,2]
[422963097,1779683439000,-5117.5954908,0.00011952,2]
[422963096,1779683439000,-5086.49235151,0.00011882,2]
[422963099,1779683439000,-482.5,0.00011973,2]
[422963098,1779683439000,-410.14174005,0.00011962,2]
[422963101,1779683439000,-823.0,0.00012048,2]
[422963100,1779683439000,-408.53,0.00012021,2]
[422963116,1779683439000,-319.51,0.00012706,2]
[422963102,1779683439000,-3292.0,0.00012048,2]
[422963104,1779683439000,-433.0,0.00012099,2]
[422963105,1779683439000,-17335.15199404,0.0001211,2]
[422963106,1779683439000,-1597.15,0.00012133,2]
[422963107,1779683439000,-167.48,0.00012202,2]
[422963111,1779683439000,-2718.99,0.00012456,2]
[422963110,1779683439000,-408.53,0.00012355,2]
[422963109,1779683439000,-166.46,0.00012341,2]
[422963108,1779683439000,-5117.5954908,0.00012281,2]
[422963112,1779683439000,-17335.15199404,0.00012482,2]
[422963103,1779683439000,-807.68017275,0.00012057,2]
[422963140,1779683439000,-1732.32004172,0.00013,15]
[422963122,1779683439000,-150.0,0.00012822,2]
[422963141,1779683439000,-150.0,0.00013,2]
[422963165,1779683439000,-736.0,0.00013309,2]
[422963169,1779683439000,-500.0,0.00013356,2]
[422963170,1779683439000,-150.0,0.00013356,2]
[422963168,1779683439000,-500.0,0.00013356,2]
[422963164,1779683439000,-2000.0,0.00013298,2]
[422963172,1779683439000,-6424.07687638,0.00013397,2]
[422963171,1779683439000,-5000.0,0.00013397,2]
[422963183,1779683439000,-500.0,0.00013496,7]
[422963175,1779683439000,-807.68017275,0.00013478,2]
[422963162,1779683439000,-1152.0,0.00013252,2]
[422963173,1779683439000,-21520.6091,0.00013398,2]
[422963174,1779683439000,-32496.06303455,0.0001347,2]
[422963182,1779683439000,-500.0,0.00013496,6]
[422963181,1779683439000,-500.0,0.00013496,5]
[422963179,1779683439000,-500.0,0.00013496,3]
[422963177,1779683439000,-151.0,0.00013494,2]
[422963180,1779683439000,-500.0,0.00013496,4]
[422963178,1779683439000,-500.0,0.00013496,2]
[422963185,1779683439000,-815645.82279167,0.00013497,2]
[422963139,1779683439000,-19922.04075653,0.00013,5]
[422963176,1779683439000,-1597.15,0.00013481,2]
[422963167,1779683439000,-1000.0,0.00013356,2]
[422963184,1779683439000,-519997.9127,0.00013497,2]
[422963163,1779683439000,-5117.5954908,0.00013269,2]
[422963143,1779683439000,-150.0,0.00013049,2]
[422963160,1779683439000,-17335.15199404,0.00013226,2]
[422963144,1779683439000,-150.0,0.00013049,2]
[422963146,1779683439000,-276.16960997,0.00013049,2]
[422963151,1779683439000,-150.0,0.00013178,2]
[422963155,1779683439000,-150.0,0.00013222,2]
[422963147,1779683439000,-2595.73156971,0.0001305,2]
[422963148,1779683439000,-5086.49235151,0.00013089,2]
[422963156,1779683439000,-150.0,0.00013222,2]
[422963145,1779683439000,-150.0,0.00013049,2]
[422963153,1779683439000,-150.0,0.00013222,2]
[422963142,1779683439000,-350.0,0.00013034,2]
[422963152,1779683439000,-150.0,0.00013222,2]
[422963154,1779683439000,-150.0,0.00013222,2]
[422963150,1779683439000,-482.5,0.0001317,2]
[422963187,1779683439000,-584.892,0.00013497,2]
[422963157,1779683439000,-150.0,0.00013222,2]
[422963158,1779683439000,-150.0,0.00013222,2]
[422963159,1779683439000,-250.0,0.00013222,2]
[422963161,1779683439000,-4609.0,0.00013252,2]
[422963149,1779683439000,-592.11914468,0.00013135,2]
[422963166,1779683439000,-350.0,0.00013348,2]
[422963204,1779683440000,-151.0,0.00013497,2]
[422963205,1779683440000,-151.0,0.00013497,2]
[422963212,1779683440000,-350.0,0.00013543,2]
[422963208,1779683440000,-200.0,0.00013525,2]
[422963206,1779683440000,-151.0,0.00013497,2]
[422963203,1779683440000,-151.0,0.00013497,2]
[422963209,1779683440000,-150.0,0.00013534,2]
[422963207,1779683440000,-1000.0,0.000135,2]
[422963202,1779683440000,-172.409378,0.00013497,2]
[422963198,1779683440000,-151.0,0.00013497,2]
[422963200,1779683440000,-172.409378,0.00013497,2]
[422963199,1779683440000,-172.409378,0.00013497,2]
[422963197,1779683440000,-151.0,0.00013497,2]
[422963196,1779683440000,-151.0,0.00013497,2]
[422963195,1779683440000,-151.0,0.00013497,2]
[422963194,1779683440000,-632110.47845339,0.00013497,2]
[422963193,1779683440000,-2853.67224834,0.00013497,2]
[422963188,1779683440000,-48805.1345066,0.00013497,2]
[422963211,1779683440000,-4047.0,0.00013534,5]
[422963201,1779683440000,-172.409378,0.00013497,2]
[422963210,1779683440000,-4029.0,0.00013534,5]
[422963216,1779683440000,-200.0,0.00013587,2]
[422963214,1779683440000,-2000.0,0.0001356,2]
[422963213,1779683440000,-2000.0,0.0001356,2]
[422963234,1779683440000,-42.108,0.00013597,2]
[422963230,1779683440000,-200.0,0.00013597,2]
[422963232,1779683440000,-349311.87395816,0.00013597,2]
[422963231,1779683440000,-200.0,0.00013597,2]
[422963229,1779683440000,-455258.82220299,0.00013597,2]
[422963228,1779683440000,-300.0,0.00013596,2]
[422963227,1779683440000,-300.0,0.00013596,2]
[422963220,1779683440000,-151.0,0.00013595,2]
[422963233,1779683440000,-300.0,0.000112,2]
[422963223,1779683440000,-300.0,0.00013596,2]
[422963221,1779683440000,-300.0,0.00013596,2]
[422963222,1779683440000,-300.0,0.00013596,2]
[422963218,1779683440000,-4067.3985195,0.00013591,2]
[422963219,1779683440000,-4986.2114405,0.00013591,2]
[422963217,1779683440000,-385.6001702,0.00013591,2]
[422963226,1779683440000,-666.0,0.00013596,2]
[422963225,1779683440000,-300.0,0.00013596,2]
[422963215,1779683440000,-2000.0,0.0001358,2]
[422963224,1779683440000,-666.0,0.00013596,2]
[422963237,1779683443000,-26.01350862,0.00013597,2]
[422963258,1779684044000,150.07,6.617e-05,2]
[422963257,1779684044000,150.07,5.79e-05,2]
[422963260,1779684044000,150.07,8.271e-05,2]
[422963259,1779684044000,150.07,7.444e-05,2]
[422963307,1779684632000,-9787.68,0.00012087,2]
[422963286,1779684632000,-1285.0,0.00011215,2]
[422963292,1779684632000,-2377.76203065,0.00011372,2]
[422963289,1779684632000,-5581.53,0.0001125,2]
[422963287,1779684632000,-300.0,0.00011248,2]
[422963290,1779684632000,-1359.0,0.00011282,2]
[422963288,1779684632000,-844.0,0.00011249,2]
[422963291,1779684632000,-191.10191603,0.0001136,2]
[422963284,1779684632000,-191.10191603,0.00011194,2]
[422963294,1779684632000,-7475.37,0.00011417,2]
[422963293,1779684632000,-4545.47,0.00011401,2]
[422963285,1779684632000,-1200.0,0.00011214,2]
[422963295,1779684632000,-3955.06,0.00011493,2]
[422963269,1779684632000,-150.07,9.098e-05,2]
[422963279,1779684632000,-500.0,0.00010958,5]
[422963281,1779684632000,-2404.22,0.00010981,2]
[422963306,1779684632000,-29999.99,0.00012087,2]
[422963278,1779684632000,-500.0,0.00010958,4]
[422963277,1779684632000,-500.0,0.00010958,3]
[422963283,1779684632000,-200.0,0.00011121,2]
[422963274,1779684632000,-179.16021638,0.00010858,2]
[422963282,1779684632000,-1960.0,0.00011037,2]
[422963275,1779684632000,-779.34,0.00010953,2]
[422963272,1779684632000,-500.0,0.00010708,2]
[422963273,1779684632000,-150.07,0.00010753,2]
[422963271,1779684632000,-167.48,0.00010663,2]
[422963270,1779684632000,-150.07,9.926e-05,2]
[422963280,1779684632000,-500.0,0.00010958,6]
[422963296,1779684632000,-4874.0,0.00011544,2]
[422963276,1779684632000,-500.0,0.00010958,2]
[422963301,1779684632000,-150.0,0.00011863,2]
[422963304,1779684632000,-500.0,0.00012,2]
[422963322,1779684632000,-295.0,0.00012357,2]
[422963324,1779684632000,-46.73204703,0.000124,2]
[422963325,1779684632000,-782.15795297,0.000124,2]
[422963323,1779684632000,-500.0,0.00012399,2]
[422963329,1779684632000,-1933.66954703,0.00012513,2]
[422963327,1779684632000,-408.6925,0.00012464,2]
[422963328,1779684632000,-1500.0,0.000125,4]
[422963320,1779684632000,-186.4775966,0.00012354,2]
[422963326,1779684632000,-1013.48,0.00012426,2]
[422963310,1779684632000,-7705.795349,0.00012101,2]
[422963314,1779684632000,-800.0,0.00012262,2]
[422963308,1779684632000,-383.46,0.00012101,2]
[422963313,1779684632000,-1000.0,0.00012259,2]
[422963321,1779684632000,-272.6324034,0.00012354,2]
[422963316,1779684632000,-630.01539961,0.00012335,2]
[422963315,1779684632000,-4082.28291141,0.00012279,2]
[422963297,1779684632000,-150.07,0.0001158,2]
[422963299,1779684632000,-800.0,0.00011678,2]
[422963303,1779684632000,-800.0,0.0001197,2]
[422963300,1779684632000,-1000.0,0.00011863,2]
[422963298,1779684632000,-287.14999999,0.00011668,7]
[422963305,1779684632000,-4082.28291143,0.00012045,2]
[422963309,1779684632000,-92581.71860983,0.00012101,2]
[422963317,1779684632000,-706.95471448,0.00012335,2]
[422963318,1779684632000,-343.02988591,0.00012335,2]
[422963312,1779684632000,-150.0,0.00012145,2]
[422963311,1779684632000,-6298.72604117,0.00012101,2]
[422963302,1779684632000,-15697.0,0.00011864,2]
[422963414,1779684638000,-500.0,0.0001286,2]
[422963424,1779684638000,-500.0,0.0001286,2]
[422963416,1779684638000,-500.0,0.0001286,2]
[422963415,1779684638000,-270.3057671,0.0001286,2]
[422963411,1779684638000,-800.0,0.00012846,2]
[422963413,1779684638000,-151.2579555,0.0001286,2]
[422963422,1779684638000,-500.0,0.0001286,2]
[422963425,1779684638000,-500.0,0.0001286,2]
[422963429,1779684638000,-500.0,0.0001286,2]
[422963426,1779684638000,-500.0,0.0001286,2]
[422963423,1779684638000,-500.0,0.0001286,2]
[422963433,1779684638000,-500.0,0.0001286,2]
[422963427,1779684638000,-500.0,0.0001286,2]
[422963431,1779684638000,-507.7077289,0.0001286,2]
[422963428,1779684638000,-500.0,0.0001286,2]
[422963432,1779684638000,-500.0,0.0001286,2]
[422963419,1779684638000,-500.0,0.0001286,2]
[422963430,1779684638000,-500.0,0.0001286,2]
[422963421,1779684638000,-500.0,0.0001286,2]
[422963404,1779684638000,-2500.0,0.0001276,2]
[422963417,1779684638000,-479.58329865,0.0001286,2]
[422963397,1779684638000,-2000.0,0.00012564,2]
[422963396,1779684638000,-800.0,0.00012554,2]
[422963395,1779684638000,-2148.61336438,0.00012513,2]
[422963398,1779684638000,-169.3,0.00012579,2]
[422963399,1779684638000,-3100.0,0.000126,4]
[422963435,1779684638000,-500.0,0.0001286,2]
[422963400,1779684638000,-403.38,0.0001261,2]
[422963405,1779684638000,-5000.0,0.00012761,2]
[422963418,1779684638000,-229.72316131,0.0001286,2]
[422963409,1779684638000,-6300.0,0.000128,4]
[422963408,1779684638000,-246.570742,0.000128,2]
[422963401,1779684638000,-1488.24,0.00012645,2]
[422963407,1779684638000,-2005.54765334,0.00012793,2]
[422963406,1779684638000,-346.14864549,0.00012793,2]
[422963403,1779684638000,-4082.28291141,0.00012747,2]
[422963410,1779684638000,-166.7,0.00012822,2]
[422963412,1779684638000,-496.09121624,0.00012851,2]
[422963420,1779684638000,-500.0,0.0001286,2]
[422963402,1779684638000,-4700.0,0.000127,4]
[422963440,1779684638000,-500.0,0.0001286,2]
[422963436,1779684638000,-500.0,0.0001286,2]
[422963442,1779684638000,-500.0,0.0001286,2]
[422963477,1779684638000,-666.56516962,0.0001286,2]
[422963474,1779684638000,-666.56516962,0.0001286,2]
[422963481,1779684638000,-666.56516962,0.0001286,2]
[422963479,1779684638000,-666.56516962,0.0001286,2]
[422963483,1779684638000,-666.56516962,0.0001286,2]
[422963487,1779684638000,-666.56516962,0.0001286,2]
[422963448,1779684638000,-500.0,0.0001286,2]
[422963485,1779684638000,-666.56516962,0.0001286,2]
[422963476,1779684638000,-666.56516962,0.0001286,2]
[422963475,1779684638000,-666.56516962,0.0001286,2]
[422963493,1779684638000,-666.56516962,0.0001286,2]
[422963497,1779684638000,-666.56516962,0.0001286,2]
[422963502,1779684638000,-666.56516962,0.0001286,2]
[422963504,1779684638000,-666.56516962,0.0001286,2]
[422963506,1779684638000,-666.56516962,0.0001286,2]
[422963500,1779684638000,-666.56516962,0.0001286,2]
[422963508,1779684638000,-666.56516962,0.0001286,2]
[422963510,1779684638000,-666.56516962,0.0001286,2]
[422963491,1779684638000,-666.56516962,0.0001286,2]
[422963473,1779684638000,-666.56516962,0.0001286,2]
[422963489,1779684638000,-666.56516962,0.0001286,2]
[422963460,1779684638000,-500.0,0.0001286,2]
[422963444,1779684638000,-500.0,0.0001286,2]
[422963469,1779684638000,-666.56516962,0.0001286,2]
[422963446,1779684638000,-500.0,0.0001286,2]
[422963450,1779684638000,-500.0,0.0001286,2]
[422963434,1779684638000,-500.0,0.0001286,2]
[422963438,1779684638000,-500.0,0.0001286,2]
[422963439,1779684638000,-500.0,0.0001286,2]
[422963452,1779684638000,-500.0,0.0001286,2]
[422963454,1779684638000,-500.0,0.0001286,2]
[422963437,1779684638000,-500.0,0.0001286,2]
[422963458,1779684638000,-500.0,0.0001286,2]
[422963471,1779684638000,-666.56516962,0.0001286,2]
[422963456,1779684638000,-500.0,0.0001286,2]
[422963465,1779684638000,-666.56516962,0.0001286,2]
[422963462,1779684638000,-666.56516962,0.0001286,2]
[422963463,1779684638000,-666.56516962,0.0001286,2]
[422963467,1779684638000,-666.56516962,0.0001286,2]
[422963459,1779684638000,-500.0,0.0001286,2]
[422963461,1779684638000,-500.0,0.0001286,2]
[422963542,1779684639000,-666.56516962,0.0001286,2]
[422963567,1779684639000,-671.50268939,0.0001286,2]
[422963547,1779684639000,-666.56516962,0.0001286,2]
[422963555,1779684639000,-671.50268939,0.0001286,2]
[422963553,1779684639000,-671.50268939,0.0001286,2]
[422963565,1779684639000,-671.50268939,0.0001286,2]
[422963561,1779684639000,-671.50268939,0.0001286,2]
[422963536,1779684639000,-666.56516962,0.0001286,2]
[422963514,1779684639000,-666.56516962,0.0001286,2]
[422963538,1779684639000,-666.56516962,0.0001286,2]
[422963534,1779684639000,-666.56516962,0.0001286,2]
[422963523,1779684639000,-666.56516962,0.0001286,2]
[422963521,1779684639000,-666.56516962,0.0001286,2]
[422963517,1779684639000,-666.56516962,0.0001286,2]
[422963519,1779684639000,-666.56516962,0.0001286,2]
[422963512,1779684639000,-666.56516962,0.0001286,2]
[422963563,1779684639000,-671.50268939,0.0001286,2]
[422963540,1779684639000,-666.56516962,0.0001286,2]
[422963544,1779684639000,-666.56516962,0.0001286,2]
[422963573,1779684639000,-671.50268939,0.0001286,2]
[422963557,1779684639000,-671.50268939,0.0001286,2]
[422963551,1779684639000,-671.50268939,0.0001286,2]
[422963600,1779684639000,-1396360.82328656,0.00012861,2]
[422963597,1779684639000,-150.0,0.0001286,2]
[422963603,1779684639000,-24186.65703,0.00012861,2]
[422963595,1779684639000,-150.0,0.0001286,2]
[422963593,1779684639000,-150.0,0.0001286,2]
[422963589,1779684639000,-168.03166484,0.0001286,2]
[422963587,1779684639000,-671.50268936,0.0001286,2]
[422963591,1779684639000,-150.0,0.0001286,2]
[422963583,1779684639000,-671.50268939,0.0001286,2]
[422963580,1779684639000,-671.50268939,0.0001286,2]
[422963578,1779684639000,-671.50268939,0.0001286,2]
[422963576,1779684639000,-671.50268939,0.0001286,2]
[422963569,1779684639000,-671.50268939,0.0001286,2]
[422963571,1779684639000,-671.50268939,0.0001286,2]
[422963549,1779684639000,-666.56516962,0.0001286,2]
[422963559,1779684639000,-671.50268939,0.0001286,2]
[422963585,1779684639000,-671.50268939,0.0001286,2]
[422963725,1779684640000,-883.15138334,0.00012861,2]
[422963732,1779684640000,-835566.54380335,0.00012861,2]
[422963756,1779684640000,-250.0,0.00012861,2]
[422963742,1779684640000,-768.0,0.00012861,2]
[422963755,1779684640000,-38850.66866935,0.00012861,2]
[422963740,1779684640000,-3798.091139,0.00012861,2]
[422963761,1779684643000,-582.60027214,0.00012861,2]
[422963760,1779684643000,-358.00012558,0.00012861,2]
[422963762,1779684644000,-420.05544144,0.00012861,2]
[422963780,1779684646000,-647.46,0.00012861,2]
[422963792,1779685009000,163.5,7.489e-05,2]
[422963791,1779685009000,163.5,6.808e-05,2]
[422963790,1779685009000,163.5,6.128e-05,2]
[422963793,1779685010000,163.5,8.17e-05,2]
[422963803,1779685218000,-300.0,9.735e-05,2]
[422963801,1779685218000,-250.0,9.191e-05,2]
[422963800,1779685218000,-163.5,8.851e-05,2]
[422963802,1779685218000,-163.5,9.532e-05,2]
[422963804,1779685218000,-300.0,9.735e-05,2]
[422963805,1779685218000,-1200.0,9.735e-05,2]
[422963807,1779685218000,-250.0,9.736e-05,2]
[422963808,1779685218000,-5070.79814117,9.736e-05,2]
[422963806,1779685218000,-300.0,9.735e-05,2]
[422963814,1779685263000,-354.81,0.00010953,2]
[422963813,1779685263000,-163.5,0.00010894,2]
[422963810,1779685263000,-163.5,0.00010213,2]
[422963812,1779685263000,-161.55902973,0.00010793,2]
[422963811,1779685263000,-1680.0,0.00010709,2]
[422963809,1779685263000,-302.32810967,0.00010088,2]
[422963815,1779685277000,-195.0,0.00011097,2]
[422963816,1779685277000,-215.81793337,0.00011097,2]
[422963819,1779685277000,-2537.77827756,0.0001174,2]
[422963818,1779685277000,-150.0,0.00011739,2]
[422963820,1779685277000,-314.4085085,0.0001174,2]
[422963817,1779685277000,-163.5,0.00011574,2]
[422963848,1779685832000,-336.15,0.00012329,2]
[422963856,1779685832000,-2261.8456,0.00012659,2]
[422963854,1779685832000,-4910.37979728,0.00012643,2]
[422963853,1779685832000,-6096.41820917,0.0001261,2]
[422963852,1779685832000,-1349.60229756,0.000126,4]
[422963851,1779685832000,-250.39770244,0.000126,4]
[422963849,1779685832000,-800.0,0.000125,4]
[422963850,1779685832000,-7902.74,0.000125,2]
[422963841,1779685832000,-239.50655506,0.00011776,2]
[422963845,1779685832000,-2000.0,0.00011819,2]
[422963842,1779685832000,-150.0,0.00011818,2]
[422963846,1779685832000,-160.83,0.00012193,2]
[422963844,1779685832000,-169.3,0.00011819,2]
[422963843,1779685832000,-1200.0,0.00011818,2]
[422963857,1779685832000,-3724.09153934,0.0001266,2]
[422963840,1779685832000,-188.97344494,0.00011776,2]
[422963839,1779685832000,-151.65919362,0.00011739,2]
[422963847,1779685832000,-163.5,0.00012255,2]
[422963858,1779685832000,-242.5655732,0.00012661,2]
[422963903,1779685832000,-823.641,0.0001274,2]
[422963859,1779685832000,-6160.84362653,0.00012661,2]